lending/lending_fUSD_20251125
["ID","MTS","AMOUNT","RATE_DAILY","PERIOD"]
[394903725,1764105032406,-151.0,0.0001877,2]
[394903727,1764105032416,-166.66,0.00018869,2]
[394903729,1764105032426,-1500.0,0.000189,2]
[394903731,1764105032436,-1000.0,0.00018937,2]
[394903733,1764105032446,-575.3376,0.00018959,2]
[394903735,1764105032456,-151.0,0.0001898,2]
[394903737,1764105032466,-166.8235437,0.00018983,2]
[394903739,1764105032475,-8591.143956,0.00018983,2]
[394903741,1764105032485,-10480.2474522,0.00018983,2]
[394903743,1764105032497,-151.0,0.00018984,2]
[394903745,1764105032506,-151.0,0.00018984,2]
[394903747,1764105032515,-151.0,0.00018984,2]
[394903749,1764105032524,-2599.96404,0.00018984,2]
[394903750,1764105032533,-151.0,0.00018984,2]
[394903751,1764105032543,-176.01618032,0.00018984,2]
[394903752,1764105032552,-12181.33120402,0.00018984,2]
[394903753,1764105032562,-151.0,0.00018986,2]
[394903754,1764105032572,-219.0,0.00018989,2]
[394903755,1764105032581,-289.0,0.00018989,2]
[394903756,1764105032590,-314.01,0.00018994,2]
[394903757,1764105032599,-150.0,0.00018995,2]
[394903758,1764105032608,-1602.0,0.00018995,2]
[394903760,1764105032618,-3438.0,0.00018995,2]
[394903762,1764105032628,-609.0,0.00018995,2]
[394903764,1764105032637,-823.0,0.00018995,2]
[394903765,1764105032645,-1257.0,0.00018995,2]
[394903767,1764105032654,-660.0,0.00018995,2]
[394903769,1764105032663,-1192.0,0.00018995,2]
[394903771,1764105032672,-908.0,0.00018995,2]
[394903772,1764105032681,-1934.70333164,0.00018995,2]
[394903773,1764105032695,-660.1,0.00018995,2]
[394903775,1764105038153,-120.19666836,0.00018995,2]
[394903776,1764105038163,-561.0,0.00018995,2]
[394903777,1764105038172,-759.91197549,0.00018995,2]
[394903778,1764105038210,-423.82310137,0.00018995,2]
[394903779,1764105038221,-2298.27441512,0.00018995,2]
[394903784,1764105040097,-693.18269845,0.00018995,2]
[394903828,1764105046301,-1032.8352462,0.00016972,2]
[394903829,1764105046310,-5920.16569316,0.0001862,2]
[394903830,1764105046357,-587.90238695,0.0001862,2]
[394903831,1764105046416,-1058.3,0.0001862,2]
[394904025,1764106232214,-242.82075602,0.00017132,2]
[394904027,1764106232223,-277.40231251,0.000179,2]
[394904033,1764106232272,-781.96064254,0.000179,2]
[394904041,1764106232330,-5019.0,0.000179,2]
[394904601,1764106238326,-5471.67105319,0.000179,2]
[394904604,1764106238337,-6619.79384427,0.000179,2]
[394904606,1764106238351,-508.55729508,0.000179,2]
[394904616,1764106238440,-579.71974103,0.000179,2]
[394904624,1764106238500,-789.55177033,0.000179,2]
[394904847,1764106240554,-7148.01305197,0.000179,2]
[394904866,1764106240722,-725237.96218908,0.000179,2]
[394904868,1764106240731,-1067.26308771,0.00017934,2]
[394904870,1764106240741,-151.0,0.00017997,2]
[394904872,1764106240751,-1200.0,0.00017999,2]
[394904874,1764106240762,-94023.55361561,0.00018,2]
[394904876,1764106240774,-1067.26308769,0.00018031,2]
[394904878,1764106240783,-150.0,0.00018049,2]
[394904881,1764106240792,-150.0,0.00018049,2]
[394904883,1764106240802,-163.76965775,0.00018049,2]
[394904884,1764106240811,-150.0,0.00018049,2]
[394904885,1764106240819,-150.0,0.00018049,2]
[394904886,1764106240828,-150.0,0.00018049,2]
[394904887,1764106240838,-150.0,0.00018049,2]
[394904888,1764106240848,-150.0,0.00018049,2]
[394904889,1764106240857,-1067.26308769,0.00018128,2]
[394904890,1764106240866,-1067.26308769,0.00018226,2]
[394904891,1764106240874,-1067.26308769,0.00018323,2]
[394904892,1764106240883,-1067.26308769,0.0001842,2]
[394904893,1764106240893,-151.0,0.00018517,2]
[394904894,1764106240902,-518.805,0.00018519,2]
[394904895,1764106240911,-19967.4996,0.0001852,2]
[394904896,1764106240920,-1000.0,0.0001852,2]
[394904897,1764106240929,-12078.30979535,0.0001852,2]
[394904898,1764106240938,-151.0,0.00018609,2]
[394904899,1764106240947,-151.0,0.00018609,2]
[394904901,1764106240956,-151.0,0.00018609,2]
[394904903,1764106240965,-151.0,0.00018609,2]
[394904904,1764106240975,-151.0,0.00018609,2]
[394904905,1764106240984,-151.0,0.00018609,2]
[394904906,1764106240993,-151.0,0.00018609,2]
[394904907,1764106241003,-151.0,0.00018609,2]
[394904908,1764106241012,-151.0,0.00018609,2]
[394904909,1764106241021,-151.0,0.00018609,2]
[394904910,1764106241030,-255.23714218,0.00018609,2]
[394904911,1764106241040,-157.01,0.00018609,2]
[394904912,1764106241049,-151.0,0.0001861,2]
[394904913,1764106241058,-151.0,0.0001861,2]
[394904914,1764106241067,-150.0,0.00018619,2]
[394904915,1764106241076,-150.0,0.00018619,2]
[394904916,1764106241085,-150.0,0.00018619,2]
[394904917,1764106241094,-500.0,0.00018619,2]
[394904918,1764106241103,-150.0,0.00018619,2]
[394904919,1764106241112,-150.0,0.00018619,2]
[394904920,1764106241121,-500.0,0.00018619,2]
[394904921,1764106241130,-150.0,0.00018619,2]
[394904922,1764106241140,-670.0,0.00018619,2]
[394904923,1764106241150,-150.0,0.00018619,2]
[394904925,1764106241159,-150.0,0.00018619,2]
[394904926,1764106241168,-150.0,0.00018619,2]
[394904927,1764106241177,-150.0,0.00018619,2]
[394904928,1764106241186,-150.0,0.00018619,2]
[394904929,1764106241196,-150.0,0.00018619,2]
[394904930,1764106241205,-150.0,0.00018619,2]
[394904931,1764106241214,-258.13891343,0.00018619,2]
[394904932,1764106241223,-500.0,0.00018619,2]
[394904933,1764106241233,-150.0,0.00018718,2]
[394904934,1764106241459,-500.0,0.00018756,2]
[394904935,1764106241469,-150.0,0.00018756,2]
[394904936,1764106241478,-500.0,0.00018756,2]
[394904937,1764106241487,-670.0,0.00018756,2]
[394904938,1764106241496,-150.0,0.00018756,2]
[394904939,1764106241506,-200.0,0.00018756,2]
[394904940,1764106241516,-500.0,0.00018756,2]
[394904941,1764106241526,-500.0,0.00018857,2]
[394904942,1764106241535,-500.0,0.00018857,2]
[394904943,1764106241544,-500.0,0.00018857,2]
[394904944,1764106241554,-500.0,0.00018857,2]
[394904945,1764106241564,-500.0,0.00018857,2]
[394904946,1764106241574,-500.0,0.00018857,2]
[394904947,1764106241586,-500.0,0.00018857,2]
[394904948,1764106241596,-553.28562656,0.00018857,2]
[394904949,1764106241605,-500.0,0.00018857,2]
[394904950,1764106241615,-500.0,0.00018857,2]
[394904951,1764106241624,-500.0,0.00018857,2]
[394904952,1764106241634,-500.0,0.00018857,2]
[394904953,1764106241643,-500.0,0.00018857,2]
[394904954,1764106241653,-500.0,0.00018857,2]
[394904955,1764106241663,-500.0,0.00018857,2]
[394904956,1764106241672,-500.0,0.00018857,2]
[394904957,1764106241682,-500.0,0.00018857,2]
[394904958,1764106241691,-500.0,0.00018857,2]
[394904959,1764106241700,-500.0,0.00018857,2]
[394904960,1764106241710,-500.0,0.00018857,2]
[394904961,1764106241719,-500.0,0.00018857,2]
[394904962,1764106241728,-500.0,0.00018857,2]
[394904963,1764106241738,-500.0,0.00018857,2]
[394904964,1764106241747,-500.0,0.00018857,2]
[394904965,1764106241760,-500.0,0.00018857,2]
[394904966,1764106241770,-500.0,0.00018857,2]
[394904967,1764106241779,-500.0,0.00018857,2]
[394904968,1764106241789,-500.0,0.00018857,2]
[394904969,1764106241799,-500.0,0.00018857,2]
[394904970,1764106241808,-500.0,0.00018857,2]
[394904971,1764106241817,-500.0,0.00018857,2]
[394904972,1764106241827,-500.0,0.00018857,2]
[394904973,1764106241837,-500.0,0.00018857,2]
[394904974,1764106241846,-500.0,0.00018857,2]
[394904975,1764106241855,-600.0,0.00018857,2]
[394904976,1764106241865,-500.0,0.00018857,2]
[394904977,1764106241874,-500.0,0.00018857,2]
[394904978,1764106241887,-151.0,0.00018857,2]
[394904979,1764106241898,-151.0,0.00018857,2]
[394904980,1764106241908,-3905.5707032,0.00018858,2]
[394904981,1764106241917,-2310.9626425,0.00018858,2]
[394904982,1764106241927,-11636.4716046,0.00018858,2]
[394904983,1764106241936,-151.0,0.00018858,2]
[394904984,1764106241945,-151.0,0.00018858,2]
[394904985,1764106241955,-217.83804072,0.0001888,2]
[394904986,1764106241965,-157.02,0.00018883,2]
[394904987,1764106241975,-150.0,0.00018893,2]
[394904988,1764106241985,-200.0,0.00018893,2]
[394904989,1764106241995,-500.0,0.00018893,2]
[394904990,1764106242005,-670.0,0.00018893,2]
[394904991,1764106242014,-500.0,0.00018893,2]
[394904992,1764106242024,-600.0,0.00018958,2]
[394904993,1764106242033,-1044.36,0.00018969,2]
[394904994,1764106242043,-500.0,0.00018981,2]
[394904995,1764106242052,-500.0,0.00018981,2]
[394904996,1764106242062,-503.77862628,0.00018981,2]
[394904997,1764106242071,-500.0,0.00018981,2]
[394904998,1764106242082,-2166.6367,0.00018995,2]
[394904999,1764106242091,-151.0,0.00018995,2]
[394905000,1764106242101,-151.0,0.00018995,2]
[394905001,1764106242111,-217.291566,0.00018995,2]
[394905002,1764106242120,-8583.03967209,0.00019,2]
[394905003,1764106242130,-314.37044498,0.00019,2]
[394905004,1764106242140,-157.13342727,0.00019,2]
[394905005,1764106242152,-620.0,0.00019001,2]
[394905006,1764106242162,-500.0,0.0001903,2]
[394905007,1764106242172,-670.0,0.0001903,2]
[394905008,1764106242182,-500.0,0.0001903,2]
[394905009,1764106242191,-3860.6,0.00019118,2]
[394905010,1764106242201,-500.0,0.00019167,2]
[394905011,1764106242211,-670.0,0.00019167,2]
[394905012,1764106242220,-500.0,0.00019167,2]
[394905013,1764106242229,-151.0,0.00019176,2]
[394905014,1764106242239,-620.0,0.00019177,2]
[394905015,1764106242249,-513.33,0.00019178,2]
[394905016,1764106242258,-513.33,0.00019178,2]
[394905017,1764106242267,-513.33,0.00019178,2]
[394905018,1764106242281,-513.33,0.00019178,2]
[394905019,1764106242291,-151.0,0.00019178,2]
[394905020,1764106242300,-151.0,0.00019178,2]
[394905021,1764106242309,-174.698841,0.00019178,2]
[394905022,1764106242319,-500.0,0.00019218,2]
[394905023,1764106242328,-500.0,0.00019218,2]
[394905024,1764106242337,-250.0,0.00019218,2]
[394905025,1764106242347,-250.0,0.00019218,2]
[394905026,1764106242356,-250.0,0.00019218,2]
[394905027,1764106242366,-250.0,0.00019218,2]
[394905030,1764106242376,-246.6482952,0.00019218,2]
[394905032,1764106242385,-250.0,0.00019218,2]
[394905034,1764106242397,-250.0,0.00019218,2]
[394905036,1764106242407,-161.0,0.00019218,2]
[394905038,1764106242416,-575.04444361,0.00019218,2]
[394905040,1764106242425,-1257.0,0.00019224,2]
[394905042,1764106242434,-823.0,0.00019224,2]
[394905044,1764106242443,-660.0,0.00019224,2]
[394905046,1764106242453,-908.0,0.00019224,2]
[394905048,1764106242463,-2715.0,0.00019224,2]
[394905050,1764106242472,-197.782,0.00019224,2]
[394905052,1764106242481,-306.218,0.00019224,2]
[394905054,1764106242491,-3438.0,0.00019224,2]
[394905056,1764106242501,-609.0,0.00019224,2]
[394905058,1764106242510,-350.90837612,0.0001925,2]
[394905060,1764106242519,-830.0,0.00019266,2]
[394905062,1764106242528,-1777.07,0.0001929,2]
[394905064,1764106242538,-1500.0,0.0001929,2]
[394905066,1764106242547,-166.32,0.0001929,2]
[394905068,1764106242557,-150.0,0.0001929,2]
[394905070,1764106242566,-250.0,0.0001929,2]
[394905072,1764106242577,-200.0,0.0001929,2]
[394905074,1764106242587,-999.0,0.0001929,3]
[394905076,1764106242597,-157.19,0.0001929,2]
[394905078,1764106242607,-200.0,0.0001929,2]
[394905080,1764106242616,-500.0,0.00019304,2]
[394905082,1764106242625,-670.0,0.00019304,2]
[394905084,1764106242635,-500.0,0.00019304,2]
[394905086,1764106242646,-620.0,0.00019318,2]
[394905088,1764106242655,-620.0,0.00019346,2]
[394905090,1764106242664,-150.0,0.00019386,4]
[394905092,1764106242675,-620.0,0.00019399,2]
[394905094,1764106242684,-500.0,0.00019441,2]
[394905096,1764106242694,-670.0,0.00019441,2]
[394905098,1764106242704,-500.0,0.00019441,2]
[394905101,1764106242713,-620.0,0.00019446,2]
[394905102,1764106242722,-500.0,0.00019529,2]
[394905104,1764106242731,-500.0,0.00019578,2]
[394905106,1764106242740,-670.0,0.00019578,2]
[394905108,1764106242749,-500.0,0.00019578,2]
[394905110,1764106242759,-600.0,0.00019668,2]
[394905113,1764106242774,-500.0,0.00019715,2]
[394905115,1764106242783,-670.0,0.00019715,2]
[394905117,1764106242792,-500.0,0.00019715,2]
[394905119,1764106242801,-620.0,0.00019726,2]
[394905121,1764106242813,-1680.0,0.00019735,2]
[394905123,1764106242822,-500.0,0.00019852,2]
[394905125,1764106242831,-670.0,0.00019852,2]
[394905127,1764106242841,-500.0,0.00019852,2]
[394905129,1764106242850,-479.24,0.0001989,2]
[394905131,1764106242859,-958.25,0.0001989,2]
[394905133,1764106242868,-479.24,0.0001989,2]
[394905135,1764106242878,-479.24,0.0001989,2]
[394905137,1764106242888,-479.24,0.0001989,2]
[394905139,1764106242900,-958.25,0.0001989,2]
[394905141,1764106242909,-479.24,0.0001989,2]
[394905143,1764106242918,-2751.0,0.000199,2]
[394905145,1764106242927,-500.0,0.00019989,2]
[394905147,1764106242937,-670.0,0.00019989,2]
[394905149,1764106242947,-500.0,0.00019989,2]
[394905151,1764106242956,-150.0,0.00020055,4]
[394905153,1764106242966,-150.0,0.00020055,4]
[394905155,1764106242976,-150.0,0.00020055,4]
[394905157,1764106242985,-1436.59,0.00020063,2]
[394905159,1764106242995,-500.0,0.00020126,2]
[394905161,1764106243004,-670.0,0.00020126,2]
[394905163,1764106243013,-500.0,0.00020126,2]
[394905165,1764106243023,-488.87,0.00020187,2]
[394905167,1764106243032,-500.0,0.00020205,2]
[394905169,1764106243042,-500.0,0.00020205,2]
[394905171,1764106243052,-1200.0,0.00020205,2]
[394905173,1764106243061,-620.0,0.00020224,2]
[394905175,1764106243071,-500.0,0.00020263,2]
[394905176,1764106243080,-670.0,0.00020263,2]
[394905177,1764106243089,-500.0,0.00020263,2]
[394905178,1764106243098,-600.0,0.00020379,2]
[394905179,1764106243108,-168.0,0.00020389,2]
[394905180,1764106243117,-500.0,0.000204,2]
[394905181,1764106243126,-670.0,0.000204,2]
[394905182,1764106243136,-262.0,0.000204,2]
[394905183,1764106243146,-166.66,0.00020402,2]
[394905184,1764106243155,-168.0,0.00020448,2]
[394905185,1764106243164,-620.0,0.00020514,2]
[394905186,1764106243174,-607.36042898,0.00020537,2]
[394905187,1764106243183,-670.0,0.00020537,2]
[394905188,1764106243192,-151.0,0.00020548,2]
[394905189,1764106243201,-151.0,0.00020548,2]
[394905190,1764106243212,-151.0,0.00020548,2]
[394905191,1764106243220,-168.0,0.00020567,2]
[394905192,1764106243229,-620.0,0.00020602,2]
[394905194,1764106243239,-670.0,0.00020674,2]
[394905196,1764106243248,-620.0,0.00020708,2]
[394905198,1764106243257,-620.0,0.00020725,2]
[394905200,1764106243266,-168.0,0.00020732,2]
[394905202,1764106243275,-168.0,0.00020756,2]
[394905204,1764106243283,-620.0,0.00020797,2]
[394905206,1764106243292,-887.37786179,0.00020798,2]
[394905208,1764106243302,-670.0,0.00020811,2]
[394905210,1764106243311,-476.28,0.00020849,2]
[394905212,1764106243320,-620.0,0.00020869,2]
[394905214,1764106243329,-168.0,0.00020887,2]
[394905216,1764106243338,-12078.30979532,0.00020896,2]
[394905218,1764106243347,-157.19,0.00020898,2]
[394905220,1764106243356,-670.0,0.00020948,2]
[394905222,1764106243366,-9197.14,0.00020951,2]
[394905224,1764106243375,-9999.99,0.00020951,2]
[394905226,1764106243384,-150.99,0.00020951,2]
[394905228,1764106243394,-3742.05,0.00020951,2]
[394905230,1764106243404,-564.02,0.00020951,2]
[394905232,1764106243413,-299.99,0.00020951,7]
[394905234,1764106243422,-500.0,0.00020951,2]
[394905236,1764106243431,-2166.63671,0.00020995,2]
[394905238,1764106243440,-168.0,0.00021041,2]
[394905240,1764106243449,-670.0,0.00021085,2]
[394905242,1764106243458,-600.0,0.0002109,2]
[394905244,1764106243467,-1931.0,0.000211,2]
[394905246,1764106243476,-1603.0,0.000211,2]
[394905248,1764106243486,-150.0,0.0002112,2]
[394905250,1764106243496,-3354.56580198,0.0002112,2]
[394905252,1764106243505,-150.0,0.0002112,2]
[394905254,1764106243515,-3961.88847028,0.0002112,2]
[394905256,1764106243524,-150.0,0.0002112,2]
[394905258,1764106243533,-9495.05926016,0.0002112,2]
[394905260,1764106243542,-150.0,0.0002112,2]
[394905262,1764106243551,-3870.00792463,0.0002112,2]
[394905264,1764106243561,-670.0,0.00021222,2]
[394905266,1764106243570,-871.4506164,0.00021247,2]
[394905267,1764106243579,-2596.4477727,0.00021247,2]
[394905268,1764106243589,-500.0,0.00021301,2]
[394905269,1764106243598,-1200.0,0.00021301,2]
[394905270,1764106243607,-1000.0,0.00021305,2]
[394905271,1764106243617,-670.0,0.00021359,2]
[394905272,1764106243626,-2338.4592924,0.00021389,2]
[394905273,1764106243635,-670.0,0.00021496,2]
[394905274,1764106243645,-168.0,0.00021602,2]
[394905275,1764106243654,-670.0,0.00021633,2]
[394905276,1764106243664,-300.0,0.00021633,2]
[394905277,1764106243673,-694.0,0.00021639,2]
[394905278,1764106243683,-247.87530836,0.00021647,2]
[394905279,1764106243693,-300.0,0.00021677,2]
[394905280,1764106243702,-300.0,0.00021696,2]
[394905281,1764106243712,-166.32,0.00021701,2]
[394905282,1764106243721,-300.0,0.00021704,2]
[394905283,1764106243731,-300.0,0.00021712,2]
[394905284,1764106243740,-168.0,0.00021739,2]
[394905285,1764106243750,-300.0,0.00021767,2]
[394905286,1764106243764,-690.0,0.0002177,2]
[394905287,1764106243774,-300.0,0.00021774,2]
[394905288,1764106243783,-194.4469156,0.0002178,2]
[394905289,1764106243793,-579.3458073,0.0002178,2]
[394905290,1764106243804,-396.0,0.000218,2]
[394905291,1764106243813,-600.0,0.00021801,2]
[394905292,1764106243823,-300.0,0.00021806,2]
[394905293,1764106243832,-2099.43007015,0.0002189,2]
[394905294,1764106243843,-169.91253126,0.000219,2]
[394905295,1764106243852,-5000.0,0.00021918,2]
[394905296,1764106243861,-156.450772,0.00021918,2]
[394905297,1764106243870,-150.0,0.00021918,2]
[394905298,1764106243880,-150.0,0.00021918,2]
[394905299,1764106243889,-521.7807964,0.00021925,2]
[394905300,1764106243899,-168.0,0.00021939,2]
[394905301,1764106243908,-150.34604515,0.00021973,2]
[394905302,1764106243917,-500.0,0.00021973,2]
[394905304,1764106243926,-200.0,0.00021973,2]
[394905306,1764106243936,-500.0,0.00021973,2]
[394905308,1764106243946,-150.54,0.0002199,2]
[394905309,1764106243956,-1436.59,0.0002199,2]
[394905310,1764106243965,-666.0,0.00021999,2]
[394905311,1764106243975,-666.0,0.00021999,2]
[394905312,1764106243984,-513.33,0.00021999,2]
[394905313,1764106243994,-164.09678117,0.00022,10]
[394905314,1764106244003,-231855.70804556,0.00022,4]
[394905315,1764106244012,-790.56320971,0.00022,7]
[394905316,1764106244022,-154.81193159,0.00022055,2]
[394905317,1764106244031,-166.66,0.00022086,2]
[394905318,1764106244040,-401.04,0.00022219,2]
[394905320,1764106244049,-1257.0,0.00022224,2]
[394905322,1764106244058,-823.0,0.00022224,2]
[394905323,1764106244068,-660.0,0.00022224,2]
[394905324,1764106244077,-908.0,0.00022224,2]
[394905325,1764106244086,-2715.0,0.00022224,2]
[394905326,1764106244095,-150.0,0.00022224,2]
[394905327,1764106244105,-252.0,0.00022224,2]
[394905328,1764106244115,-3438.0,0.00022224,2]
[394905329,1764106244124,-609.0,0.00022224,2]
[394905330,1764106244133,-168.0,0.00022338,2]
[394905331,1764106244144,-500.0,0.00022397,2]
[394905332,1764106244154,-1200.0,0.00022397,2]
[394905333,1764106244163,-500.0,0.00022397,2]
[394905334,1764106244173,-513.33,0.00022499,2]
[394905335,1764106244182,-29880.01173618,0.000225,2]
[394905336,1764106244193,-157.19,0.00022505,2]
[394905337,1764106244203,-599.22714,0.00022521,2]
[394905338,1764106244212,-1750.0,0.000226,2]
[394905339,1764106244222,-158.09269521,0.00022658,2]
[394905340,1764106244231,-519.4543645,0.0002271,2]
[394905341,1764106244241,-19258.72617982,0.000229,2]
[394905342,1764106244250,-2166.6367,0.00022995,2]
[394905343,1764106244260,-1000.56962389,0.00023,2]
[394905344,1764106244270,-500.0,0.00023,30]
[394905345,1764106244279,-500.0,0.00023,30]
[394905346,1764106244289,-500.09112118,0.00023,30]
[394905347,1764106244298,-2567.62931272,0.000231,2]
[394905348,1764106244307,-12078.30979532,0.00023271,2]
[394905349,1764106244316,-150.54,0.00023483,2]
[394905350,1764106244325,-500.0,0.00023493,2]
[394905351,1764106244335,-1200.0,0.00023493,2]
[394905352,1764106244344,-200.0,0.000235,2]
[394905353,1764106244355,-209.9269235,0.00023534,2]
[394905354,1764106244364,-1000.0,0.00023672,2]
[394905355,1764106244373,-166.66,0.00023769,2]
[394905356,1764106244383,-887.37786172,0.00023806,2]
[394905357,1764106244392,-3600.0,0.00024,2]
[394905358,1764106244402,-16096.55336714,0.00024,2]
[394905359,1764106244414,-4007.2392168,0.00024,5]
[394905360,1764106244426,-603.2435,0.00024,2]
[394905361,1764106244435,-166.32,0.00024113,2]
[394905362,1764106244446,-157.19,0.00024113,2]
[394905363,1764106244455,-169.91253118,0.00024117,2]
[394905364,1764106244465,-418.76113381,0.0002421,2]
[394905365,1764106244476,-3669.48506838,0.0002421,2]
[394905366,1764106244486,-177.39,0.00024416,2]
[394905367,1764106244496,-1096.0,0.00024521,2]
[394905368,1764106244505,-265.4694895,0.00024558,2]
[394905369,1764106244659,-500.0,0.00024589,2]
[394905370,1764106244668,-1200.0,0.00024589,2]
[394905371,1764106244678,-500.0,0.00024589,2]
[394905372,1764106244687,-292.17,0.00024638,2]
[394905373,1764106244697,-166.27253263,0.0002465,2]
[394905374,1764106244706,-666.0,0.00024657,2]
[394905375,1764106244716,-666.0,0.00024657,2]
[394905376,1764106244725,-153.0,0.00024658,2]
[394905377,1764106244734,-153.0,0.00024658,2]
[394905378,1764106244743,-153.0,0.00024658,2]
[394905379,1764106244751,-153.0,0.00024658,2]
[394905380,1764106244761,-153.0,0.00024658,2]
[394905381,1764106244774,-153.0,0.00024658,2]
[394905382,1764106244783,-153.0,0.00024658,2]
[394905383,1764106244792,-153.0,0.00024658,2]
[394905384,1764106244801,-153.0,0.00024658,2]
[394905385,1764106244812,-153.0,0.00024658,2]
[394905386,1764106244821,-153.0,0.00024658,2]
[394905387,1764106244830,-153.0,0.00024658,2]
[394905388,1764106244839,-153.0,0.00024658,2]
[394905389,1764106244852,-153.0,0.00024658,2]
[394905390,1764106244861,-153.0,0.00024658,2]
[394905391,1764106244870,-153.0,0.00024658,2]
[394905392,1764106244879,-153.0,0.00024658,2]
[394905393,1764106244889,-153.0,0.00024658,2]
[394905394,1764106244898,-153.0,0.00024658,2]
[394905395,1764106244907,-153.0,0.00024658,2]
[394905396,1764106244917,-153.0,0.00024658,2]
[394905397,1764106244926,-153.0,0.00024658,2]
[394905398,1764106244937,-153.0,0.00024658,2]
[394905399,1764106244947,-153.0,0.00024658,2]
[394905400,1764106244957,-153.0,0.00024658,2]
[394905401,1764106244966,-153.0,0.00024658,2]
[394905402,1764106244975,-153.0,0.00024658,2]
[394905403,1764106244985,-153.0,0.00024658,2]
[394905404,1764106244994,-153.0,0.00024658,2]
[394905405,1764106245003,-153.0,0.00024658,2]
[394905406,1764106245013,-153.0,0.00024658,2]
[394905407,1764106245023,-153.0,0.00024658,2]
[394905408,1764106245033,-153.0,0.00024658,2]
[394905409,1764106245051,-153.0,0.00024658,2]
[394905410,1764106245060,-153.0,0.00024658,2]
[394905411,1764106245069,-153.0,0.00024658,2]
[394905412,1764106245079,-153.0,0.00024658,2]
[394905413,1764106245088,-153.0,0.00024658,2]
[394905414,1764106245097,-153.0,0.00024658,2]
[394905415,1764106245106,-153.0,0.00024658,2]
[394905416,1764106245116,-153.0,0.00024658,2]
[394905417,1764106245127,-153.0,0.00024658,2]
[394905418,1764106245137,-153.0,0.00024658,2]
[394905419,1764106245147,-153.0,0.00024658,2]
[394905420,1764106245156,-153.0,0.00024658,2]
[394905421,1764106245166,-153.0,0.00024658,2]
[394905422,1764106245175,-153.0,0.00024658,2]
[394905423,1764106245184,-153.0,0.00024658,2]
[394905424,1764106245193,-153.0,0.00024658,2]
[394905425,1764106245203,-153.0,0.00024658,2]
[394905426,1764106245212,-153.0,0.00024658,2]
[394905427,1764106245221,-153.0,0.00024658,2]
[394905428,1764106245231,-153.0,0.00024658,2]
[394905429,1764106245240,-153.0,0.00024658,2]
[394905430,1764106245249,-153.0,0.00024658,2]
[394905431,1764106245258,-153.0,0.00024658,2]
[394905432,1764106245267,-153.0,0.00024658,2]
[394905433,1764106245277,-153.0,0.00024658,2]
[394905434,1764106245285,-153.0,0.00024658,2]
[394905435,1764106245295,-153.0,0.00024658,2]
[394905436,1764106245304,-153.0,0.00024658,2]
[394905437,1764106245313,-153.0,0.00024658,2]
[394905438,1764106245322,-1624.0,0.00024658,2]
[394905439,1764106245331,-1624.0,0.00024658,2]
[394905440,1764106245340,-1624.0,0.00024658,2]
[394905441,1764106245349,-1624.0,0.00024658,2]
[394905442,1764106245358,-1624.0,0.00024658,2]
[394905443,1764106245367,-1624.0,0.00024658,2]